Cogmind - Beta 11 @@@ ROGUE MODE // 2022.04.10 @ 23:17:59 Player: Finestep Result: Destroyed by B-99 Colossus with Multirail Performance ------------- Evolutions (9) 4500 Regions Visited (28) 5600 Robots Destroyed (556) 2780 Value Destroyed (25355) 25355 Prototype IDs (84) 1680 Alien Tech Used (3) 600 Bonus (17594) 17594 TOTAL SCORE: 58109 Bonus ------- Triggered High Security 1000 High Alert Combat Kills 5748 Follower Combat Kills 2637 Entered DSFs 500 Met Data Miner 300 Met Zhirov 300 Built Enhanced Grunts 300 A7 Reached Mainframe 300 Met R17 at Cetus 500 Found Hidden Lab 3000 Scanned by Researcher 500 Acquired SGEMP 2000 Delivered SGEMP 2000 Friendly Fire -1491 Cogmind --------- Core Integrity 0/1600 Matter 284/300 Energy 98/100 System Corruption 55% Temperature Cool (0) Movement Core (50) Location -1/Command Parts ------- > --- POWER (3) -------- (None) > --- PROPULSION (7) --- (None) > --- UTILITY (14) ----- (None) > --- WEAPON (2) ------- (None) > --- INVENTORY (5) ---- Advanced Matter Compressor (400) Potential Cannon Peak State ------------ > --- POWER ------------ Quantum Reactor Improved Quantum Reactor Improved Quantum Reactor > --- PROPULSION ------- Biometal Heavy Treads Experimental Flexi-carbon Leg Experimental Flexi-carbon Leg Experimental Flexi-carbon Leg Experimental Flexi-carbon Leg Centrium Leg > --- UTILITY ---------- High-capacity Storage Unit Experimental Optical Array Advanced Targeting Computer Advanced Target Analyzer Experimental Core Analyzer Experimental Core Analyzer Improved Armor Integrity Analyzer Quantum Capacitor Advanced Phase Shifter Medium Regenerative Plating Graphene Brace Advanced Shield Generator Quantum Router > --- WEAPON ----------- High-powered Disruptor Cannon > --- INVENTORY -------- Advanced Power Amplifier Improved Energy Well Advanced Matter Compressor Antimissile System Antimissile System Bomb Drone Bay Assault Drone Bay Transdimensional Reconstructor Potential Cannon Potential Cannon Helical Railgun Hypervelocity Multirail Heavy Shock Bomb Launcher Neutron Missile Launcher [Rating: 228] Favorites ----------- Power Heavy Antimatter Reactor Engine Cooled Ion Engine Power Core Neutrino Core Reactor Heavy Antimatter Reactor Propulsion High-density Centrium Wheel Treads Armored Treads Leg Titanium Leg Wheel High-density Centrium Wheel Utility High-capacity Storage Unit Device Graphene Brace Storage High-capacity Storage Unit Processor Experimental Optical Array Hackware Quantum Router Protection Centrium Medium Armor Plating Weapon Compact Linear Accelerator Energy Gun Force Rifle Energy Cannon Heavy Particle Cannon Ballistic Gun Advanced KE Penetrator Ballistic Cannon Compact Linear Accelerator Launcher Heavy Shock Bomb Launcher Impact Weapon Impact Mace Special Melee Weapon Improved Datajack Build | -11 -10 -10 -9 -9 -8 -7 -7 -7 -7 -6 -6 -6 -5 -5 -5 -5 -4 -4 -4 -4 -3 -3 -3 -3 -2 -2 -1 -1 ------- Run | Scr Mat Min Mat Min Mat Fac Low Low Dat Pro Fac DSF Fac Ext Cet Arc Fac Upp Upp Zhi Pro Res Arm Lab Res Tes Acc Com Slots Evolved 18 | . . . 2 . 2 2 . . . . 2 . 2 . . . 2 . . . . 2 . . 2 . 2 . Power 2 | . . . . . . . . . . . 1 . . . . . . . . . . . . . . . 1 . Propulsion 4 | . . . 1 . . 1 . . . . . . 1 . . . 1 . . . . . . . . . . . Utility 12 | . . . 1 . 2 1 . . . . 1 . 1 . . . 1 . . . . 2 . . 2 . 1 . Weapon . | . . . . . . . . . . . . . . . . . . . . . . . . . . . . . Parts Attached 595 | 7 15 7 33 2 42 44 1 6 3 6 . 28 65 7 13 3 19 1 14 2 17 25 51 9 73 49 23 30 Power 41 | 1 2 1 1 . 1 2 . . . . . 5 5 1 . 1 1 . . 1 1 2 2 1 5 4 1 3 Engine 12 | 1 2 1 1 . 1 . . . . . . 2 3 1 . . . . . . . . . . . . . . Core 7 | . . . . . . 1 . . . . . 3 . . . . . . . . 1 . . . . 1 . 1 Reactor 22 | . . . . . . 1 . . . . . . 2 . . 1 1 . . 1 . 2 2 1 5 3 1 2 Propulsion 104 | 2 5 1 13 1 3 18 . . . . . 11 12 . . . 1 . 2 . . 2 5 2 5 12 1 8 Treads 59 | . 3 1 13 1 3 7 . . . . . 9 7 . . . . . 2 . . 2 5 . 1 3 . 2 Leg 33 | 2 2 . . . . 11 . . . . . 2 . . . . . . . . . . . . . 9 1 6 Wheel 12 | . . . . . . . . . . . . . 5 . . . 1 . . . . . . 2 4 . . . Hover . | . . . . . . . . . . . . . . . . . . . . . . . . . . . . . Flight . | . . . . . . . . . . . . . . . . . . . . . . . . . . . . . Utility 269 | 2 3 2 12 . 16 11 1 4 . 4 . 9 21 4 7 . 14 1 5 1 3 16 35 5 46 18 15 14 Device 187 | 1 . . 7 . 8 6 1 3 . 4 . 4 14 2 4 . 10 1 4 . 2 13 28 3 37 15 8 12 Storage 12 | 1 2 . 1 . . . . . . . . . 2 1 . . 1 . . . . 1 . . . 2 1 . Processor 18 | . 1 . 1 . 2 2 . . . . . 1 1 1 . . . . . . . . 3 . 3 1 1 1 Hackware 9 | . . . . . 1 . . . . . . 1 2 . . . 1 . . . . . 1 1 1 . 1 . Protection 43 | . . 2 3 . 5 3 . 1 . . . 3 2 . 3 . 2 . 1 1 1 2 3 1 5 . 4 1 Artifact . | . . . . . . . . . . . . . . . . . . . . . . . . . . . . . Weapon 181 | 2 5 3 7 1 22 13 . 2 3 2 . 3 27 2 6 2 3 . 7 . 13 5 9 1 17 15 6 5 Energy Gun 14 | 1 1 . . . . . . . . . . 3 8 . 1 . . . . . . . . . . . . . Energy Cannon 39 | . . . . . 6 7 . 1 2 1 . . 5 . . . . . . . . . 1 . 5 6 2 3 Ballistic Gun 25 | 1 3 2 . . . . . . . . . . 3 . . 2 1 . 2 . . . . . . 5 4 2 Ballistic Cannon 52 | . 1 . 5 1 7 . . . . . . . 3 1 3 . 1 . 3 . 6 3 5 1 10 2 . . Launcher 35 | . . 1 1 . 5 3 . 1 . 1 . . 6 1 2 . 1 . 2 . 4 2 2 . 1 2 . . Special Weapon . | . . . . . . . . . . . . . . . . . . . . . . . . . . . . . Impact Weapon 12 | . . . . . 3 2 . . . . . . 2 . . . . . . . 3 . 1 . 1 . . . Slashing Weapon . | . . . . . . . . . . . . . . . . . . . . . . . . . . . . . Piercing Weapon . | . . . . . . . . . . . . . . . . . . . . . . . . . . . . . Special Melee Weapon 4 | . . . 1 . 1 1 . . 1 . . . . . . . . . . . . . . . . . . . Unidentified Prototypes 45 | . . . . . 1 2 . . . . . 3 10 . 3 1 2 . . 1 1 1 6 . 6 8 . . Corrupted Parts 12 | . . . . . . 1 . . . . . 5 1 . 1 2 . . . . . . . . . 1 1 . System Corruption 80 | . . . . . . 10 . . . . . 50 1 . 10 3 . . . . . . . . . 1 5 . Parts Lost 104 | . 4 2 1 . 8 5 . 1 . 2 . 6 13 . . . 1 . . . 2 5 3 . 7 5 6 33 Power 16 | . 1 1 . . 1 . . . . . . 2 2 . . . 1 . . . 1 . . . 1 . 2 4 Propulsion 26 | . 1 . . . 2 1 . . . . . 2 5 . . . . . . . . . 1 . 1 3 . 10 Utility 52 | . 1 1 1 . 5 3 . . . . . 2 5 . . . . . . . 1 5 2 . 4 2 4 16 Weapon 10 | . 1 . . . . 1 . 1 . 2 . . 1 . . . . . . . . . . . 1 . . 3 Highest Loss Streak 24 | . 2 1 1 . 4 3 . 1 . 2 . 4 4 . . . 1 . . . 1 2 1 . 5 2 2 24 To Critical Strikes . | . . . . . . . . . . . . . . . . . . . . . . . . . . . . . Average Slot Usage (%) 91 | . 98 99 99 100 98 95 100 99 86 95 80 95 90 88 87 85 88 89 89 89 88 87 85 83 84 88 87 63 Engine 4 | . 13 13 11 11 8 3 . . . . . 4 8 4 5 5 3 . . . . . . . . . . . Reactor 4 | . . . . . . . 7 7 7 7 6 2 2 5 5 3 6 10 10 10 5 5 9 9 7 6 10 4 Treads 15 | . 24 28 32 33 26 24 . . . . . 22 20 11 11 11 10 10 10 10 10 9 11 10 11 2 3 1 Leg 5 | . 3 . . . . 4 30 30 30 30 26 3 . . . . . . . . . . . . . 15 19 15 Wheel 3 | . . . . . . . . . . . . . 2 5 5 5 10 10 10 10 10 9 4 6 2 5 . . Device 14 | . 3 . 8 . 7 7 15 15 15 15 13 19 19 14 11 11 14 19 20 21 17 22 25 19 22 15 12 11 Storage 7 | . 14 14 11 11 9 7 7 7 7 7 6 6 5 9 5 5 5 5 5 5 5 6 5 4 4 5 4 3 Processor 14 | . 9 1 6 11 17 19 15 15 15 15 13 12 15 21 23 23 19 15 15 15 15 10 14 16 16 16 20 16 Protection 5 | . . 11 7 11 8 6 7 7 7 7 6 3 1 . 4 5 6 6 5 5 8 8 4 3 4 6 5 2 Energy Cannon 2 | . . . . . 5 13 15 14 2 10 6 2 1 . . . . . . . . . . . . 2 2 . Ballistic Gun 1 | . 14 27 . . . . . . . . . . 1 . . 6 9 5 3 . . . . . . 1 1 2 Ballistic Cannon 7 | . 5 . 20 22 12 . . . . . . . 1 11 10 4 . 5 6 10 9 8 7 9 7 2 . . Naked Turns . | . . . . . . . . . . . . . . . . . . . . . . . . . . . . . Heaviest Build 179 | 14 31 34 64 64 70 81 69 86 86 86 80 102 103 92 95 92 113 113 113 117 119 131 131 132 129 129 179 142 Greatest Support 235 | 20 40 40 60 68 68 80 76 76 76 76 76 104 170 170 170 170 170 40 40 40 150 150 235 235 235 175 127 193 Greatest Overweight (x) 5 | . . . 1 1 1 4 . 1 1 1 1 2 5 . . . 2 2 2 2 2 3 3 3 3 3 1 . Average Overweight (x) . | . . . . . . . . . . 1 1 . . . . . 1 2 2 2 1 2 . 1 . . . . Largest Inventory Capacity 20 | 8 15 15 20 20 20 20 20 20 20 20 20 20 20 20 20 20 20 20 20 20 20 20 20 20 20 20 20 20 Average Capacity 19 | 7 11 15 16 20 20 20 20 20 20 20 20 20 20 20 20 20 20 20 20 20 20 20 20 20 20 20 20 14 Most Carried 20 | 6 15 15 20 20 20 20 20 20 20 20 20 20 20 20 20 20 20 20 20 20 20 20 20 20 20 20 20 20 Average Carried 18 | 3 11 14 16 19 19 19 20 19 19 19 20 17 19 19 19 20 19 20 19 19 19 19 19 18 18 19 18 12 Final Capacity 20 | 8 15 15 20 20 20 20 20 20 20 20 20 20 20 20 20 20 20 20 20 20 20 20 20 20 20 20 20 5 Final Carried 20 | 5 15 15 20 20 20 20 20 20 19 20 20 20 20 20 20 20 20 20 20 20 20 20 19 20 20 20 19 3 Class Distribution -------------------- 57% | Mutant 25% | Scavenger-Mutant 13% | Hacker-Mutant Dominant Class ---------------- Mutant | -10/Materials Mutant | -10/Mines Mutant | -9/Materials Mutant | -9/Mines Mutant | -8/Materials Mutant | -7/Factory Mutant | -7/Lower Caves Mutant | -7/Lower Caves Mutant | -7/Data Miner Mutant | -6/Proximity Caves Mutant | -6/Factory Mutant | -6/DSF Scavenger-Mutant | -5/Factory Scavenger-Mutant | -5/Extension Scavenger-Mutant | -5/Cetus Scavenger-Mutant | -5/Archives Scavenger-Mutant | -4/Factory Scavenger-Mutant | -4/Upper Caves Scavenger-Mutant | -4/Upper Caves Commander-Mutant | -4/Zhirov Scavenger-Mutant | -3/Proximity Caves Mutant | -3/Research Mutant | -3/Armory Mutant | -3/Lab Hacker-Mutant | -2/Research Hacker-Mutant | -2/Testing Generator-Mutant | -1/Access Scavenger-Mutant | -1/Command Resources | -11 -10 -10 -9 -9 -8 -7 -7 -7 -7 -6 -6 -6 -5 -5 -5 -5 -4 -4 -4 -4 -3 -3 -3 -3 -2 -2 -1 -1 ----------- Run | Scr Mat Min Mat Min Mat Fac Low Low Dat Pro Fac DSF Fac Ext Cet Arc Fac Upp Upp Zhi Pro Res Arm Lab Res Tes Acc Com Matter Collected 20489 | 293 396 362 1699 250 1298 569 53 230 . 211 . 319 1043 707 486 269 779 270 454 . 1103 1146 2929 52 3427 1281 347 516 Remotely 4835 | . . . . . . . . . . . . . . . . . . . . . . 754 1361 . 2521 199 . . Salvage Created 25610 | 103 688 240 1538 180 1690 1362 . 183 . 136 . 1008 2998 587 310 288 1094 194 425 . 882 1420 1988 . 2722 3237 1537 800 Parts 1117 | 7 32 15 102 23 99 68 . 3 . 7 . 36 112 24 18 10 57 2 13 . 23 52 69 . 135 105 74 31 Haulers Intercepted 26 | . 2 . 6 . 3 4 . . . . . . 3 . . . 4 . . . . 1 . . . 3 . . Recyclers Shooed 18 | . 1 . 2 . 4 1 . . . . . . 5 1 . . . . . . . 1 . . 2 . 1 . Parts Field Recycled . | . . . . . . . . . . . . . . . . . . . . . . . . . . . . . Retrieved Matter . | . . . . . . . . . . . . . . . . . . . . . . . . . . . . . Parts Self-Destructed 52 | . . . . . . . . 13 . 10 . . . . . . . 2 12 . 15 . . . . . . . Prevented 10 | . . . . . . . . . . . . . . . . . . . 9 . 1 . . . . . . . Kills | -11 -10 -10 -9 -9 -8 -7 -7 -7 -7 -6 -6 -6 -5 -5 -5 -5 -4 -4 -4 -4 -3 -3 -3 -3 -2 -2 -1 -1 ------- Run | Scr Mat Min Mat Min Mat Fac Low Low Dat Pro Fac DSF Fac Ext Cet Arc Fac Upp Upp Zhi Pro Res Arm Lab Res Tes Acc Com Combat Hostiles Destroyed 397 | . 11 11 33 10 36 23 . 4 . 4 . 11 29 10 9 3 4 4 7 . 11 24 43 . 44 37 21 8 Melee 2 | . . . . . . . . . . . . . . . . . . . . . . . . . 2 . . . Guns 79 | . 6 5 4 . . . . . . . . 7 14 . . . 4 2 3 . . . . . . 21 7 6 Cannons 221 | . 5 . 26 10 21 14 . 4 . 2 . 3 7 7 8 3 . 2 1 . 8 20 34 . 35 7 3 1 AOE 76 | . . 6 3 . 13 9 . . . 2 . . 6 3 . . . . 3 . 3 4 4 . 5 7 7 1 Classes Destroyed 29 | 2 5 3 1 . 4 3 . . . . . 1 . . . . . . 2 . 3 . . . . 3 2 . Worker 35 | . 2 1 4 2 4 6 . . . . . . 3 . . . . . . . . 1 . . 3 3 2 4 Builder 15 | . . 1 . . 4 2 . . . . . . 1 . . . 1 . . . . 2 . . 3 1 . . Tunneler 4 | 1 . 1 . 1 1 . . . . . . . . . . . . . . . . . . . . . . . Hauler 26 | . 2 . 6 . 3 4 . . . . . . 3 . . . 4 . . . . 1 . . . 3 . . Recycler 43 | 1 1 1 5 . 5 4 . . . . . . 6 2 . . 2 . . . . 5 . . 6 2 1 2 Minesweeper 1 | . . . . . . . . . . . . . . . . . . . 1 . . . . . . . . . Mechanic 2 | . . . . . . 2 . . . . . . . . . . . . . . . . . . . . . . Operator 8 | . 1 . 1 . 1 . . . . . . . . . . 3 . . . . . . 1 . . 1 . . Watcher 27 | . 3 . 5 . 4 . . . . . . . 3 1 1 . 2 . . . . 1 2 . 2 1 2 . Swarmer 72 | . . 3 6 7 4 7 . . . 1 . . 4 6 5 . . 1 3 . 4 6 . . 8 3 4 . Saboteur 1 | . . . . . . . . . . . . . . . . . . . . . . . . . . 1 . . Grunt 132 | . 11 2 17 3 20 7 . 4 . 2 . 5 10 1 2 . 1 1 1 . 1 5 18 . 9 11 1 . Brawler 4 | . . . . . 1 . . . . . . . . 1 . . . . . . . . 1 . . 1 . . Duelist 6 | . . . . . . . . . . . . 1 1 . . . . . . . . . . . 1 3 . . Protector 2 | . . . . . . 1 . . . . . . . . . . . . . . 1 . . . . . . . Researcher 2 | . . . . . . . . . . . . . . . . . . . . . . . . . . 2 . . Sentry 39 | . . . 10 . 6 . . . . . . . 2 2 . 3 . 1 . . 2 2 5 . 6 . . . Demolisher 4 | . . . . . . . . . . . . . . . . . . . . . 3 . 1 . . . . . Specialist 17 | . . . . . 2 3 . . . . . 3 2 . . . . . . . . 1 2 . . . 4 . Hunter 35 | . . . . . 2 3 . . . . . 1 6 . . . . . 2 . . 5 1 . . 6 5 4 Programmer 63 | . . . . . . 2 . . . 1 . . 4 . . . 1 1 . . . 5 14 . 19 10 4 2 Heavy 6 | . . . . . 1 . . . . . . 1 . . . . 2 . . . . . 1 . 1 . . . Q-Series 2 | . . . . . . . . . . . . . . . . . . . . . . . . . . . 2 . Behemoth 1 | . . . . . . . . . . . . . . . . . . . . . . . . . . . 1 . Cetus Guard 2 | . . . . . . . . . . . . . . . 2 . . . . . . . . . . . . . Enhanced Grunt 1 | . . . . . . . . . . . . . . . . . 1 . . . . . . . . . . . Combat Programmer 2 | . . . . . . . . . . . . . . . . . . . . . . . . . . . . 2 Striker 2 | . . . . . . . . . . . . . . . . . . . . . . . . . . 2 . . Packrat 2 | . . . . . . . . . . . . . . . . . . . 2 . . . . . . . . . Samaritan 2 | . . . . . . . . . . . . . . . . . . . . . 2 . . . . . . . Tinkerer 1 | . . . . . . . . . . . . . . . . . . . . . 1 . . . . . . . Assembled 6 | . . 6 . . . . . . . . . . . . . . . . . . . . . . . . . . Butcher 1 | . . . . . . . . . . . . . . . . . . . . . 1 . . . . . . . Mutant 1 | . . . . . . . . . . . . . . . . . . . 1 . . . . . . . . . Best Kill Streak 15 | 1 3 7 8 3 11 12 . 2 . 3 . 3 15 4 4 1 5 5 2 . 4 8 6 . 9 7 8 4 Combat Bots Only 8 | . 3 6 7 3 8 8 . 2 . 3 . 3 8 3 4 1 2 4 2 . 4 4 5 . 8 6 7 2 Max Kills in Single Turn 7 | 1 1 2 2 2 4 4 . 1 . 1 . 1 4 2 1 1 1 1 1 . 2 7 4 . 3 3 3 3 Gunslinging 1 | . . . . . . . . . . . . . . . . . . . . . . . . . . . 1 . Exploded 4 | . . 2 2 . 4 2 . . . 1 . . 3 2 . . . . 1 . 2 4 3 . 3 2 2 1 Melee 1 | . . . . . . . . . . . . . . . . . . . . . . . . . 1 . . . Uniques/NPCs Destroyed . | . . . . . . . . . . . . . . . . . . . . . . . . . . . . . Combat | -11 -10 -10 -9 -9 -8 -7 -7 -7 -7 -6 -6 -6 -5 -5 -5 -5 -4 -4 -4 -4 -3 -3 -3 -3 -2 -2 -1 -1 -------- Run | Scr Mat Min Mat Min Mat Fac Low Low Dat Pro Fac DSF Fac Ext Cet Arc Fac Upp Upp Zhi Pro Res Arm Lab Res Tes Acc Com Damage Taken 38257 | . 737 586 930 121 2558 1889 . 455 . 360 . 1745 4694 466 85 52 816 240 553 . 789 2512 2501 . 3429 3007 3134 6598 Core 3891 | . 80 98 78 . 214 104 . 49 . 28 . 210 589 49 9 . . 18 12 . 53 134 129 . 168 256 266 1347 Absorbed by Shields 7324 | . . . 324 . . . . . . . . . . 229 67 . 66 86 207 . 287 715 1782 . 1927 1215 343 76 Reduced by Siege Mode 1001 | . . . . . . . . . . . . . . 22 . 14 60 15 25 . 44 151 260 . 391 19 . . Regen/Repaired (Parts) 1878 | . . . . . . 270 . . . . . . . . . . . . . . . . . . 505 701 219 183 Core Remaining (%) 68 | 100 . 28 . 80 61 . . . . 74 . 75 . . . 35 . . . . 92 . . 74 . 70 . . Volleys Fired 1486 | 10 73 34 126 18 149 74 3 15 . 11 . 50 122 40 20 27 45 8 27 . 44 84 122 4 132 141 64 43 Largest 2 | 2 2 2 2 2 2 2 2 2 . 2 . 2 2 2 2 2 2 2 2 . 2 2 2 1 2 2 2 2 Hottest 240 | 60 75 46 78 78 150 150 150 150 . 150 . 161 180 140 240 140 96 96 126 . 126 118 136 66 226 200 200 200 Shots Fired 2566 | 20 137 62 251 36 279 132 7 28 . 15 . 96 222 71 35 54 91 16 50 . 76 162 223 4 240 133 73 53 Gun 726 | 20 104 56 44 . . . . . . . . 61 132 . 1 39 82 8 18 . . . . . . 93 25 43 Cannon 1758 | . 33 . 205 36 268 120 7 25 . 13 . 35 71 69 28 15 9 8 27 . 72 161 221 4 236 37 48 10 Launcher 82 | . . 6 2 . 11 12 . 3 . 2 . . 19 2 6 . . . 5 . 4 1 2 . 4 3 . . Special . | . . . . . . . . . . . . . . . . . . . . . . . . . . . . . Kinetic 1833 | 10 85 56 249 36 198 . . . . . . . 39 69 28 54 91 16 45 . 72 161 221 4 226 105 25 43 Thermal 556 | 10 52 . . . 70 120 7 25 . 13 . 96 129 . 1 . . . . . . . . . 3 11 12 7 Explosive 49 | . . 6 2 . 11 12 . 3 . 2 . . 5 2 . . . . 1 . 2 1 2 . . . . . Electromagnetic 128 | . . . . . . . . . . . . . 49 . 6 . . . 4 . 2 . . . 11 17 36 3 Robot Hit Streak 41 | 2 12 4 9 9 10 10 . 5 . 2 . 9 41 10 4 18 8 11 15 . 15 25 27 . 30 13 18 11 Robot Miss Streak 7 | 3 5 3 5 2 4 2 . 6 . 2 . 3 4 3 5 3 3 1 2 . 3 3 3 . 4 7 3 4 Penetration Max 1 | . . . . . . . . . . . . . 1 . . 1 1 . . . . . . . . 1 1 1 Secondary Targets 8 | . . 3 . . . . . . . . . 1 3 . . . . . . . . . . . . . 1 . Max Gunslinging Chain 1 | . . 1 . . . . . . . . . 1 1 . . . . . . . . . . . . . 1 . Capacitor 60 | . . . . . . . . . . . . . . . . . . . . . . . . . . 14 36 10 Shots Hit Robots 1671 | 8 87 33 150 21 169 82 . 10 1 6 . 66 148 45 12 34 51 13 17 . 61 104 171 . 182 107 53 40 Core Hits 958 | 3 33 27 61 12 79 67 . 8 . 8 . 21 89 18 21 15 28 5 15 . 28 52 78 . 88 131 35 36 Critical Kills 70 | . . . . . 1 . . . . . . 2 6 . . 3 6 2 2 . . . . . . 32 6 10 Critical Parts Destroyed 91 | . 2 . . . . . . . . . . 3 10 . . 1 7 1 1 . 3 . 4 . . 38 8 13 Critical Strikes 282 | . 6 . 4 1 13 . . . . . . 7 16 7 2 7 14 4 3 . 8 22 21 . 27 81 16 23 Meltdown 3 | . . . . . 1 . . . . . . . . . . . . . . . . . . . . 1 1 . Destroy 164 | . 2 . . . . . . . . . . 7 16 . . 4 13 3 3 . . . . . . 80 13 23 Blast 104 | . 4 . 4 1 12 . . . . . . . . 7 2 3 1 1 . . 4 22 17 . 26 . . . Corrupt 3 | . . . . . . . . . . . . . . . . . . . . . . . . . 1 . 2 . Smash 8 | . . . . . . . . . . . . . . . . . . . . . 4 . 4 . . . . . Melee Attacks 50 | . . . . . 3 1 . . 1 . . . 4 . . . . . . . 17 . 19 . 5 . . . Impact 49 | . . . . . 3 1 . . . . . . 4 . . . . . . . 17 . 19 . 5 . . . Slashing . | . . . . . . . . . . . . . . . . . . . . . . . . . . . . . Piercing . | . . . . . . . . . . . . . . . . . . . . . . . . . . . . . Sneak Attacks 2 | . . . . . . . . . 1 . . . . . . . . . . . . . 1 . . . . . Combat Hostiles . | . . . . . . . . . . . . . . . . . . . . . . . . . . . . . Follow-up Attacks . | . . . . . . . . . . . . . . . . . . . . . . . . . . . . . Damage Inflicted 67331 | 112 1187 1087 3245 568 4959 3876 . 436 . 308 . 1659 5748 2047 1601 1122 2353 477 1238 . 3970 4882 7999 . 8279 4155 3735 2288 Guns 9828 | 112 755 534 447 . . . . . . . . 1059 1842 . . 563 1912 264 224 . . . . . . 1061 471 584 Cannons 41104 | . 424 . 2557 510 3629 2249 . 250 . 156 . 600 2176 1740 645 559 213 213 471 . 2101 4139 6496 . 7697 1645 1897 737 Explosions 14080 | . . 552 223 . 1330 1590 . 186 . 152 . . 1679 296 956 . 216 . 543 . 824 733 713 . 415 1443 1320 909 Melee 1765 | . . . . . . . . . . . . . . . . . . . . . 1045 . 720 . . . . . Ramming 554 | . 8 1 18 58 . 37 . . . . . . 51 11 . . 12 . . . . 10 70 . 167 6 47 58 Kinetic 36971 | 26 801 534 3004 510 2501 . . . . . . . 593 1740 645 1122 2125 477 695 . 2101 4139 6496 . 7171 1236 471 584 Thermal 17131 | 86 378 . . . 1128 2493 . 250 . 156 . 1659 3173 . 604 . 126 . . . 247 . . . 579 2501 2157 1594 Explosive 6993 | . . 552 223 . 1330 1346 . 186 . 152 . . 454 296 . . 90 . 359 . 559 733 713 . . . . . Electromagnetic 3917 | . . . . . . . . . . . . . 1477 . 352 . . . 184 . 18 . . . 362 412 1060 52 Impact 1765 | . . . . . . . . . . . . . . . . . . . . . 1045 . 720 . . . . . Slashing . | . . . . . . . . . . . . . . . . . . . . . . . . . . . . . Piercing . | . . . . . . . . . . . . . . . . . . . . . . . . . . . . . Highest Corruption 55 | . 2 2 1 1 . 11 11 11 11 11 . 50 14 14 24 27 1 1 2 2 2 4 9 9 14 28 19 55 Average Corruption 8 | . 2 2 1 1 . 6 11 11 11 11 . 26 9 14 21 25 1 1 1 2 2 2 3 9 8 21 8 27 Corruption Purged 4 | . . . . . . . . . . . . . . . . . . . . . . 4 . . . . . . Corruption Blocked . | . . . . . . . . . . . . . . . . . . . . . . . . . . . . . Effects 660 | . 4 4 19 8 . 4 23 57 6 39 . 25 69 48 34 20 3 4 14 3 15 7 38 23 56 72 10 55 Message Errors 168 | . 2 1 7 2 . 1 4 11 2 11 . 5 19 15 9 3 . 3 3 1 2 1 9 7 15 19 3 13 Matter Fused 153 | . 1 2 5 2 . 1 6 21 . 9 . 5 12 6 7 5 . . . 2 6 3 10 5 15 18 1 11 Heat Flow Errors 68 | . . . 2 . . . 4 6 1 5 . 2 9 9 6 1 1 . 2 . 2 . 5 3 3 3 1 3 Energy Discharges 65 | . . . 1 1 . . 2 7 . 5 . 2 7 4 2 2 1 . 4 . . 2 4 2 5 6 2 6 Parts Rejected 6 | . . . . . . . . . . . . . 1 . . 1 . . . . . . . . . 3 . 1 Data Loss (minor) 79 | . 1 1 2 2 . 1 4 4 . 3 . 3 7 7 4 5 . . 2 . 2 1 7 4 6 5 2 6 Data Loss (major) 29 | . . . 1 . . . . 2 2 2 . 3 3 . 2 1 . . . . 1 . . 2 4 3 . 3 Misfires 24 | . . . 1 . . 1 1 2 . 2 . 1 4 2 2 1 1 . 2 . . . 2 . 2 . . . Alerts 18 | . . . . 1 . . 2 2 1 2 . . 3 1 . . . 1 1 . 1 . . . 1 2 . . Misdirections 15 | . . . . . . . . 1 . . . . . 1 2 . . . . . . . . . . 2 . 9 Weapon Failures 35 | . . . . . . . . 1 . . . 4 4 3 . 1 . . . . 1 . 1 . 5 11 1 3 Overload Shots 1 | . . . . . . . . . . . . . . . 1 . . . . . . . . . . . . . Overflow Damage 3282 | . 6 8 48 1 125 118 . 19 . . . 3 108 25 . . 86 . 166 . 738 302 492 . 435 300 142 160 Projectiles 1717 | . 6 . 20 1 81 17 . 19 . . . 3 74 25 . . 15 . 59 . 93 302 153 . 435 235 19 160 Explosions 807 | . . 8 28 . 44 96 . . . . . . 34 . . . 71 . 107 . 214 . 17 . . 65 123 . Melee 758 | . . . . . . 5 . . . . . . . . . . . . . . 431 . 322 . . . . . Knockbacks 192 | . 2 . 8 5 24 . . . . . . . 1 3 3 . . . 2 . 11 35 41 . 54 3 . . Impact 9 | . . . . 1 . . . . . . . . . . . . . . . . 3 . 4 . 1 . . . Kinetic 170 | . 2 . 8 4 22 . . . . . . . 1 3 3 . . . 2 . 6 33 37 . 47 2 . . Secondary 13 | . . . . . 2 . . . . . . . . . . . . . . . 2 2 . . 6 1 . . Self-Inflicted Damage 616 | . . 72 . . 32 . . 32 . . . . 37 . . . . . 83 . 98 . . . 3 84 148 27 Shots 13 | . . 2 . . 1 . . 1 . . . . 2 . . . . . 1 . 2 . . . 1 1 2 . Rammed 59 | . 2 1 2 3 . 1 . . . . . . 4 1 . . 1 . . . . 1 8 . 15 . 6 14 Targets Rammed 70 | . 3 1 2 5 . 3 . . . . . . 5 1 . . 1 . . . . 1 8 . 17 2 7 14 Kicked 5 | . . . . . . 2 . . . . . . . . . . . . . . . . . . . 2 1 . Crushed 6 | . 1 . . 2 . . . . . . . . 1 . . . . . . . . . . . 2 . . . Highest Temperature 359 | . 99 209 257 60 290 261 255 359 271 255 . 263 338 232 210 157 273 297 310 . 240 81 210 197 276 174 234 229 Average Temperature 64 | . 25 62 40 20 47 76 95 124 153 89 . 52 101 92 80 63 136 137 68 . 31 28 37 101 156 90 59 93 Received Heat Transfer 4517 | . 327 189 363 6 702 285 . 234 . 135 . 567 517 52 . 9 20 24 18 . 47 311 295 . 125 108 84 99 Effects 8 | . . . . . . 2 . 2 2 . . . . . 1 . 1 . . . . . . . . . . . Energy Bleed 4 | . . . . . . 1 . 1 . . . . . . 1 . 1 . . . . . . . . . . . Interference 3 | . . . . . . 1 . . 2 . . . . . . . . . . . . . . . . . . . Matter Decay 1 | . . . . . . . . 1 . . . . . . . . . . . . . . . . . . . . Siege Activations 53 | . . . . . . . . . . . . . . 3 3 2 2 1 1 . 5 10 10 . 13 1 1 1 Total Turns 1428 | . . . . . . . . . . . . . . 69 17 75 40 17 17 . 82 167 328 . 445 131 26 14 Longest Duration 131 | . . . . . . . . . . . . . . 30 8 58 32 17 17 . 23 33 87 . 61 131 26 14 Robots Corrupted 8 | . . . . . . . . . . . . . 2 . 1 . . . . . . . . . 1 1 3 . Combat Hostiles 6 | . . . . . . . . . . . . . 1 . 1 . . . . . . . . . 1 1 2 . Parts Fried 46 | . . . . . . . . . . . . . 12 . . . . . 3 . 6 . 7 . . 3 15 . Impact Corruptions 20 | . . . . . . 1 . . . . . . . . . . . . . . 10 . 8 . 1 . . . Robots Melted 8 | . . . . . 2 . . . . . . 3 1 . . . . . . . . . . . . 1 1 . Combat Hostiles 6 | . . . . . 2 . . . . . . 1 1 . . . . . . . . . . . . 1 1 . Parts Melted 49 | . . . . 1 1 5 . . . . . 8 18 . . . . . . . . . . . 4 6 6 . Heat Transferred 18631 | 200 850 . . . 1850 3493 . 370 . 222 . 2516 3757 . 350 . 50 . . . 200 . . . 334 2060 1674 705 Parts Sabotaged 1 | . . . . . . . . . . . . . . . . . . . . . . . . . . 1 . . Parts Stolen . | . . . . . . . . . . . . . . . . . . . . . . . . . . . . . Parts Stripped . | . . . . . . . . . . . . . . . . . . . . . . . . . . . . . Power Chain Reactions 5 | . . . . . . . . . . . . . . . 2 . . . . . 2 . . . 1 . . . Missiles Intercepted 13 | . . . . . . . . . . . . . . . . . . . . . . . . . . . . 13 Alert | -11 -10 -10 -9 -9 -8 -7 -7 -7 -7 -6 -6 -6 -5 -5 -5 -5 -4 -4 -4 -4 -3 -3 -3 -3 -2 -2 -1 -1 ------- Run | Scr Mat Min Mat Min Mat Fac Low Low Dat Pro Fac DSF Fac Ext Cet Arc Fac Upp Upp Zhi Pro Res Arm Lab Res Tes Acc Com Peak Influence 2032 | 10 257 246 600 173 650 511 . . . . . 228 565 845 1350 819 1173 . . . . 685 926 . 860 1609 2032 1423 Initial 1287 | . 6 11 19 165 23 287 . . . . . 3 119 235 472 540 286 . . . . 67 359 . . 483 1100 1287 Average 463 | 3 104 91 346 103 315 276 . . . . . 127 369 611 988 728 614 . . . . 291 314 . 429 1002 1359 1308 Maximum Alert Level 5 | . 1 1 2 . 2 2 . . . . . 1 2 3 4 3 4 . . . . 2 3 . 3 5 5 4 Low Security (%) 27 | 100 87 95 15 100 20 13 . . . . 100 78 18 . . . . . . . . 27 45 . 23 . . . Level 1 28 | . 12 4 40 . 46 71 . . . . . 21 39 17 . . 34 . . . . 56 29 . 27 . . . Level 2 22 | . . . 43 . 32 15 . . . . . . 42 31 30 34 22 . . . . 16 10 . 24 32 . . Level 3 10 | . . . . . . . . . . . . . . 50 34 65 41 . . . . . 14 . 25 23 . . Level 4 10 | . . . . . . . . . . . . . . . 35 . 1 . . . . . . . . 39 85 100 Level 5 . | . . . . . . . . . . . . . . . . . . . . . . . . . . . . . High Security . | . . . . . . . . . . . . . . . . . . . . . . . . . . 4 14 . Max Security . | . . . . . . . . . . . . . . . . . . . . . . . . . . . . . Sterilizations 1 | . . . . . . . . . . . . 1 . . . . . . . . . . . . . . . . Squads Dispatched 92 | . 3 . 5 1 9 2 . . . . . 2 5 1 1 . 5 . . . . 6 11 . 12 11 10 8 Investigation 16 | . 2 . 4 1 2 1 . . . . . . 1 . 1 . 1 . . . . 1 . . . . 1 1 Extermination 26 | . . . . . . 1 . . . . . . 2 . . . 1 . . . . 2 7 . 7 3 1 2 Reinforcement 32 | . 1 . 1 . 5 . . . . . . 2 2 . . . 3 . . . . 1 3 . 4 6 3 1 Assault 18 | . . . . . 2 . . . . . . . . 1 . . . . . . . 2 1 . 1 2 5 4 Garrison . | . . . . . . . . . . . . . . . . . . . . . . . . . . . . . Intercept . | . . . . . . . . . . . . . . . . . . . . . . . . . . . . . Searches Triggered . | . . . . . . . . . . . . . . . . . . . . . . . . . . . . . Data Miner Redirects 7 | . . . . . . . . . . . . . 2 . . . . . . . . 1 . . 1 . 1 2 Construction Impeded 2 | . . . . . . . . . . . . . . . . . . . . . . . . . . 2 . . Haulers Reinforced 4 | . . . . . . . . . . . . . 1 . . . . . . . . . . . 1 2 . . Active Scanning Responses . | . . . . . . . . . . . . . . . . . . . . . . . . . . . . . Cargo Convoy Interrupts 2 | . . . . . . 1 . . . . . . 1 . . . . . . . . . . . . . . . Stealth | -11 -10 -10 -9 -9 -8 -7 -7 -7 -7 -6 -6 -6 -5 -5 -5 -5 -4 -4 -4 -4 -3 -3 -3 -3 -2 -2 -1 -1 --------- Run | Scr Mat Min Mat Min Mat Fac Low Low Dat Pro Fac DSF Fac Ext Cet Arc Fac Upp Upp Zhi Pro Res Arm Lab Res Tes Acc Com Distress Signals 45 | . 4 . 3 . 4 . . . . . . . 1 1 1 . 1 . . . 18 . 3 . 2 3 4 . Communications Jammed 237 | . . . . . . . . . . . . . 4 2 . . 6 . . . . 57 11 . 129 28 . . Distress Signals 214 | . . . . . . . . . . . . . 3 2 . . 2 . . . . 57 11 . 111 28 . . Times Spotted 664 | . 20 11 47 13 57 29 . 16 . 4 . 12 49 37 19 20 19 3 12 . 20 28 54 . 57 52 44 41 Peak Tracking Total 17 | . 4 6 7 4 7 10 . 4 . 3 . 4 10 9 5 1 4 2 3 . 5 4 7 . 7 11 8 17 Tactical Retreats 33 | . 3 1 1 . 2 1 . 3 . . . 1 . 4 . . . . 3 . . . 2 . 1 5 2 4 Traps | -11 -10 -10 -9 -9 -8 -7 -7 -7 -7 -6 -6 -6 -5 -5 -5 -5 -4 -4 -4 -4 -3 -3 -3 -3 -2 -2 -1 -1 ------- Run | Scr Mat Min Mat Min Mat Fac Low Low Dat Pro Fac DSF Fac Ext Cet Arc Fac Upp Upp Zhi Pro Res Arm Lab Res Tes Acc Com Traps Triggered 18 | . 3 . 1 . . 2 . . . . . 1 2 . . . . . . . . . 3 . 1 2 . 3 Indirectly 1 | . . . . . . . . . . . . . 1 . . . . . . . . . . . . . . . Trap Hack Attempts 179 | . . . 53 . 27 99 . . . . . . . . . . . . . . . . . . . . . . Triggered . | . . . . . . . . . . . . . . . . . . . . . . . . . . . . . Disarmed . | . . . . . . . . . . . . . . . . . . . . . . . . . . . . . Reprogrammed 14 | . . . 6 . 2 6 . . . . . . . . . . . . . . . . . . . . . . Reused 3 | . . . . . . 2 . . . . . . . . . . . . 1 . . . . . . . . . Traps Extracted 15 | . . . 7 . 2 6 . . . . . . . . . . . . . . . . . . . . . . Installed 19 | . . . 1 2 . 12 . . . . . . . . . . . . 4 . . . . . . . . . Triggered 5 | . . . . . . 3 . . . . . . . . . . . . 1 . . . . . . . . 1 Most Traps Carried 6 | . . . 6 6 6 6 . . . . . . . . . . . . 2 . . . . . . . . . Machines | -11 -10 -10 -9 -9 -8 -7 -7 -7 -7 -6 -6 -6 -5 -5 -5 -5 -4 -4 -4 -4 -3 -3 -3 -3 -2 -2 -1 -1 ---------- Run | Scr Mat Min Mat Min Mat Fac Low Low Dat Pro Fac DSF Fac Ext Cet Arc Fac Upp Upp Zhi Pro Res Arm Lab Res Tes Acc Com Machines Disabled 68 | . 1 . 3 1 4 1 . . . . . . 5 4 7 4 14 . . . 3 1 8 1 2 8 . 1 Max in Single Turn 6 | . 1 . 1 1 1 1 . . . . . . 1 1 1 1 6 . . . 1 1 3 1 1 1 . 1 Machines Sabotaged . | . . . . . . . . . . . . . . . . . . . . . . . . . . . . . Garrisons Compromised 1 | . . . . . . 1 . . . . . . . . . . . . . . . . . . . . . . Overloaded Fab Kills . | . . . . . . . . . . . . . . . . . . . . . . . . . . . . . Hacking | -11 -10 -10 -9 -9 -8 -7 -7 -7 -7 -6 -6 -6 -5 -5 -5 -5 -4 -4 -4 -4 -3 -3 -3 -3 -2 -2 -1 -1 --------- Run | Scr Mat Min Mat Min Mat Fac Low Low Dat Pro Fac DSF Fac Ext Cet Arc Fac Upp Upp Zhi Pro Res Arm Lab Res Tes Acc Com Machines Accessed 79 | . 6 1 13 2 6 4 1 . 4 . 1 . 4 3 1 . 4 . 1 4 . 4 6 1 4 2 2 5 Terminals 47 | . 5 . 9 . 4 2 . . . . 1 . 3 3 1 . 3 . . . . 4 2 . 3 1 1 5 Fabricators 9 | . . . . . . 1 . . . . . . 1 . . . 1 . . . . . 4 . . 1 1 . Repair Stations 1 | . . . . . . 1 . . . . . . . . . . . . . . . . . . . . . . Recycling Units 4 | . 1 . 2 . 1 . . . . . . . . . . . . . . . . . . . . . . . Scanalyzers 4 | . . . 2 . 1 . . . . . . . . . . . . . . . . . . . 1 . . . Garrison Access . | . . . . . . . . . . . . . . . . . . . . . . . . . . . . . Total Hacks 250 | . 20 1 55 2 28 9 1 . 27 . 3 . 20 9 2 . 9 . 1 17 . 7 11 1 11 2 6 8 Successful 149 | . 12 1 37 2 18 5 1 . 27 . 1 . 9 3 . . 5 . 1 17 . . 6 1 2 . 1 . Failed 101 | . 8 . 18 . 10 4 . . . . 2 . 11 6 2 . 4 . . . . 7 5 . 9 2 5 8 Catastrophic 29 | . . . 1 . . 1 . . . . . . 3 1 1 . 3 . . . . 1 4 . 6 2 2 4 Database Lockouts . | . . . . . . . . . . . . . . . . . . . . . . . . . . . . . Manual 93 | . 9 . 28 . 16 5 . . . . . . 7 6 1 . 6 . . . . 2 4 . 6 2 1 . Terminals 150 | . 17 . 42 . 21 4 . . . . 3 . 14 9 2 . 7 . . . . 7 5 . 9 1 1 8 Fabricators 23 | . . . . . . 3 . . . . . . 6 . . . 2 . . . . . 6 . . 1 5 . Repair Stations 2 | . . . . . . 2 . . . . . . . . . . . . . . . . . . . . . . Recycling Units 12 | . 3 . 7 . 2 . . . . . . . . . . . . . . . . . . . . . . . Scanalyzers 13 | . . . 6 . 5 . . . . . . . . . . . . . . . . . . . 2 . . . Garrison Access . | . . . . . . . . . . . . . . . . . . . . . . . . . . . . . Terminal Hacks 95 | . 7 1 18 2 8 . 1 . 27 . 1 . 1 1 . . 4 . 1 17 . . 3 1 2 . . . Record 18 | . . . 1 . . . . . 11 . . . . . . . . . . 5 . . . 1 . . . . Part Schematic 12 | . . . . . . . . . 8 . . . . . . . . . . 4 . . . . . . . . Robot Schematic 8 | . . . 2 . 1 . . . 5 . . . . . . . . . . . . . . . . . . . Robot Analysis 5 | . . . . . . . . . . . . . . 1 . . . . . 4 . . . . . . . . Prototype ID Bank 15 | . 2 . 2 . 3 . . . 3 . . . . . . . 1 . . 4 . . . . . . . . Open Door 6 | . . 1 . 2 . . 1 . . . . . . . . . . . 1 . . . 1 . . . . . Open DSF 1 | . . . . . . . . . . . 1 . . . . . . . . . . . . . . . . . Branch Access Points 4 | . . . 1 . 1 . . . . . . . . . . . 1 . . . . . . . 1 . . . Terminal Index 1 | . . . 1 . . . . . . . . . . . . . . . . . . . . . . . . . Fabricator Index 1 | . . . . . . . . . . . . . . . . . 1 . . . . . . . . . . . Alert Level 1 | . . . 1 . . . . . . . . . . . . . . . . . . . . . . . . . Unreport Threat 6 | . . . 3 . . . . . . . . . . . . . . . . . . . 2 . 1 . . . Locate Traps 10 | . 2 . 4 . 2 . . . . . . . 1 . . . 1 . . . . . . . . . . . Reprogram Traps 1 | . . . 1 . . . . . . . . . . . . . . . . . . . . . . . . . Hauler Manifests 3 | . 2 . . . 1 . . . . . . . . . . . . . . . . . . . . . . . Registered Components 1 | . . . 1 . . . . . . . . . . . . . . . . . . . . . . . . . Zone Layout 2 | . 1 . 1 . . . . . . . . . . . . . . . . . . . . . . . . . Fabricator Hacks 9 | . . . . . . 2 . . . . . . 4 . . . . . . . . . 2 . . . 1 . Load Schematic 5 | . . . . . . 1 . . . . . . 2 . . . . . . . . . 1 . . . 1 . Build 4 | . . . . . . 1 . . . . . . 2 . . . . . . . . . 1 . . . . . Repair Station Hacks 2 | . . . . . . 2 . . . . . . . . . . . . . . . . . . . . . . Scan Component 1 | . . . . . . 1 . . . . . . . . . . . . . . . . . . . . . . Repair 1 | . . . . . . 1 . . . . . . . . . . . . . . . . . . . . . . Recycling Unit Hacks 4 | . 1 . 2 . 1 . . . . . . . . . . . . . . . . . . . . . . . Retrieve Components 4 | . 1 . 2 . 1 . . . . . . . . . . . . . . . . . . . . . . . Scanalyzer 9 | . . . 5 . 4 . . . . . . . . . . . . . . . . . . . . . . . Insert Component 4 | . . . 2 . 2 . . . . . . . . . . . . . . . . . . . . . . . Analyze 5 | . . . 3 . 2 . . . . . . . . . . . . . . . . . . . . . . . Garrison Access Hacks . | . . . . . . . . . . . . . . . . . . . . . . . . . . . . . Unauthorized Hacks 30 | . 4 . 12 . 5 1 . . . . . . 4 2 . . 1 . . . . . 1 . . . . . Terminals 25 | . 3 . 9 . 4 1 . . . . . . 4 2 . . 1 . . . . . 1 . . . . . Track 5 | . . . 2 . 2 . . . . . . . . . . . . . . . . . 1 . . . . . Botnet 17 | . 2 . 6 . 2 1 . . . . . . 3 2 . . 1 . . . . . . . . . . . Operators 3 | . 1 . 1 . . . . . . . . . 1 . . . . . . . . . . . . . . . Fabricators . | . . . . . . . . . . . . . . . . . . . . . . . . . . . . . Repair Stations . | . . . . . . . . . . . . . . . . . . . . . . . . . . . . . Recycling Units 4 | . 1 . 2 . 1 . . . . . . . . . . . . . . . . . . . . . . . Tunnel 4 | . 1 . 2 . 1 . . . . . . . . . . . . . . . . . . . . . . . Scanalyzers 1 | . . . 1 . . . . . . . . . . . . . . . . . . . . . . . . . Extract 1 | . . . 1 . . . . . . . . . . . . . . . . . . . . . . . . . Garrison Access . | . . . . . . . . . . . . . . . . . . . . . . . . . . . . . Data Cores Recovered . | . . . . . . . . . . . . . . . . . . . . . . . . . . . . . Used . | . . . . . . . . . . . . . . . . . . . . . . . . . . . . . Hacking Detections 63 | . 6 . 12 . 5 4 . . . . 1 . 4 3 1 . 4 . . . . 4 6 . 4 2 2 5 Full Trace Events 9 | . . . 2 . 1 1 . . . . . . 1 . 1 . 1 . . . . 1 . . . . . 1 Feedback Events 1 | . . . . . . . . . . . . . 1 . . . . . . . . . . . . . . . Corruption 1 | . . . . . . . . . . . . . 1 . . . . . . . . . . . . . . . Feedback Blocked . | . . . . . . . . . . . . . . . . . . . . . . . . . . . . . Robot Schematics Acquired 9 | . . . 2 . 1 . . . 5 . . . . . . . . . . . . . . . . 1 . . Robots Built 4 | . . . . . . . . . . . . . 4 . . . . . . . . . . . . . . . Authchips 2 | . . . . . . . . . . . . . 2 . . . . . . . . . . . . . . . Time 152 | . . . . . . . . . . . . . 152 . . . . . . . . . . . . . . . Total Robot Build Rating 20 | . . . . . . . . . . . . . 20 . . . . . . . . . . . . . . . Part Schematics Acquired 22 | . . . 3 . 2 . . . 8 . . . . . . . . . . 4 . . . . . 5 . . Parts Built 2 | . . . . . . 1 . . . . . . . . . . . . . . . . 1 . . . . . Authchips 1 | . . . . . . . . . . . . . . . . . . . . . . . 1 . . . . . Time 297 | . . . . . . 204 . . . . . . . . . . . . . . . . 93 . . . . . Total Part Build Rating 15 | . . . . . . 8 . . . . . . . . . . . . . . . . 7 . . . . . Parts Repaired 1 | . . . . . . 1 . . . . . . . . . . . . . . . . . . . . . . Time 38 | . . . . . . 38 . . . . . . . . . . . . . . . . . . . . . . Parts Recycled . | . . . . . . . . . . . . . . . . . . . . . . . . . . . . . Recycled Matter . | . . . . . . . . . . . . . . . . . . . . . . . . . . . . . Retrieved Matter . | . . . . . . . . . . . . . . . . . . . . . . . . . . . . . Retrieved Components 23 | . 3 . 18 . 2 . . . . . . . . . . . . . . . . . . . . . . . Parts Scanalyzed 4 | . . . 2 . 2 . . . . . . . . . . . . . . . . . . . . . . . Part Schematics Acquired 4 | . . . 2 . 2 . . . . . . . . . . . . . . . . . . . . . . . Parts Damaged . | . . . . . . . . . . . . . . . . . . . . . . . . . . . . . Bothacking | -11 -10 -10 -9 -9 -8 -7 -7 -7 -7 -6 -6 -6 -5 -5 -5 -5 -4 -4 -4 -4 -3 -3 -3 -3 -2 -2 -1 -1 ------------ Run | Scr Mat Min Mat Min Mat Fac Low Low Dat Pro Fac DSF Fac Ext Cet Arc Fac Upp Upp Zhi Pro Res Arm Lab Res Tes Acc Com Used RIF Installer . | . . . . . . . . . . . . . . . . . . . . . . . . . . . . . Robots Hacked 1 | . . . . . . . . . 1 . . . . . . . . . . . . . . . . . . . Non-combat . | . . . . . . . . . . . . . . . . . . . . . . . . . . . . . Combat 1 | . . . . . . . . . 1 . . . . . . . . . . . . . . . . . . . Robot Hacks Applied 1 | . . . . . . . . . 1 . . . . . . . . . . . . . . . . . . . parse_system 1 | . . . . . . . . . 1 . . . . . . . . . . . . . . . . . . . Relay Couplers Released . | . . . . . . . . . . . . . . . . . . . . . . . . . . . . . Fabnet Peak Effective % . | . . . . . . . . . . . . . . . . . . . . . . . . . . . . . Robots Rewired 10 | . . . . . . . . . . . . . . 4 . . . . 4 . 2 . . . . . . . Allies Hacked . | . . . . . . . . . . . . . . . . . . . . . . . . . . . . . Hacks Repelled . | . . . . . . . . . . . . . . . . . . . . . . . . . . . . . Allies | -11 -10 -10 -9 -9 -8 -7 -7 -7 -7 -6 -6 -6 -5 -5 -5 -5 -4 -4 -4 -4 -3 -3 -3 -3 -2 -2 -1 -1 -------- Run | Scr Mat Min Mat Min Mat Fac Low Low Dat Pro Fac DSF Fac Ext Cet Arc Fac Upp Upp Zhi Pro Res Arm Lab Res Tes Acc Com Total Allies 31 | . . . . 3 . . . . . 1 . . 4 9 5 . . . 4 . 2 . . . . . 3 . Largest Group 8 | . . . . 3 1 . . . . 1 . . 4 8 6 4 4 . 4 4 4 2 . . . . 3 . Highest-Rated Group 633 | . . . . 40 16 . . . . 96 . . 164 345 633 384 384 . 160 160 160 98 . . . . 374 . Highest-Rated Ally 159 | . . . . 16 16 . . . . 96 . . 41 159 153 96 96 . 46 46 49 49 . . . . 131 . Total Orders 16 | . . . . . . . . . . . . . . . 4 10 . . . . . . . . . 1 1 . STAY 7 | . . . . . . . . . . . . . . . 2 5 . . . . . . . . . . . . FOLLOW 7 | . . . . . . . . . . . . . . . 2 5 . . . . . . . . . . . . RETURN 2 | . . . . . . . . . . . . . . . . . . . . . . . . . . 1 1 . Ally Attacks 350 | . . . . 10 10 . . . . 2 . . 7 94 66 6 48 . 2 . 21 17 . . . 30 24 13 Total Damage 10644 | . . . . 86 72 . . . . 45 . . 474 2668 1827 265 1748 . 85 . 645 648 . . . 587 1209 285 Kills 76 | . . . . 2 . . . . . 1 . . 3 20 17 1 12 . 1 . 5 2 . . . 3 8 1 Allies Corrupted 2 | . . . . . . . . . . . . . 1 1 . . . . . . . . . . . . . . Allies Melted 1 | . . . . . . . . . . 1 . . . . . . . . . . . . . . . . . . Intel | -11 -10 -10 -9 -9 -8 -7 -7 -7 -7 -6 -6 -6 -5 -5 -5 -5 -4 -4 -4 -4 -3 -3 -3 -3 -2 -2 -1 -1 ------- Run | Scr Mat Min Mat Min Mat Fac Low Low Dat Pro Fac DSF Fac Ext Cet Arc Fac Upp Upp Zhi Pro Res Arm Lab Res Tes Acc Com Robot Analysis Total 5 | . . . . . . . . . . . . . . 1 . . . . . 4 . . . . . . . . Derelict Logs Recovered 8 | . . 1 . 2 . . . . . 1 . . . . . . . 2 2 . . . . . . . . . Drone Launches 9 | . . . . . . . . . . . . . . . . . . . . . . . . . . 2 2 5 Drone Recoveries 4 | . . . . . . . . . . . . . . . . . . . . . . . . . . 2 2 . Exploration | -11 -10 -10 -9 -9 -8 -7 -7 -7 -7 -6 -6 -6 -5 -5 -5 -5 -4 -4 -4 -4 -3 -3 -3 -3 -2 -2 -1 -1 ------------- Run | Scr Mat Min Mat Min Mat Fac Low Low Dat Pro Fac DSF Fac Ext Cet Arc Fac Upp Upp Zhi Pro Res Arm Lab Res Tes Acc Com Turns Passed 31624 | 123 1299 461 3106 1292 2447 1659 619 1579 137 1116 8 484 1627 1099 756 333 746 717 1319 249 1198 1048 2089 696 2182 1505 813 917 Spaces Moved 15608 | 70 657 222 1467 685 882 685 402 879 90 490 5 158 660 665 481 127 409 501 858 182 613 449 874 252 778 736 380 951 Core 581 | 9 . . . . . . . . . . . . . . . . . . . . . . . . . . . 572 Treads 7880 | . 550 222 1467 685 882 536 . . . . . 145 563 665 481 127 151 . . . 12 17 568 86 644 76 3 . Legs 3407 | 61 107 . . . . 149 402 879 90 490 5 13 . . . . . . . . . . . . . 455 377 379 Wheels 3740 | . . . . . . . . . . . . . 97 . . . 258 501 858 182 601 432 306 166 134 205 . . Hover . | . . . . . . . . . . . . . . . . . . . . . . . . . . . . . Flight . | . . . . . . . . . . . . . . . . . . . . . . . . . . . . . Fastest Speed 50 | 50 120 160 160 166 166 127 127 127 127 197 197 127 108 135 135 135 130 130 130 130 130 130 130 150 110 96 96 50 Average Speed 149 | 111 153 160 167 176 213 165 127 162 134 197 197 186 152 135 135 135 131 130 130 130 130 141 149 151 150 128 164 72 Slowest Speed 410 | 120 160 160 250 250 250 410 127 197 197 197 197 330 320 135 135 135 135 130 130 130 160 160 160 155 225 225 225 120 Overloaded Moves . | . . . . . . . . . . . . . . . . . . . . . . . . . . . . . Propulsion Burnouts . | . . . . . . . . . . . . . . . . . . . . . . . . . . . . . Robots Hopped . | . . . . . . . . . . . . . . . . . . . . . . . . . . . . . Cave-ins Triggered 1 | . . . . . . . . . . . . . . . . . . . . . . . . . . . 1 . Teleports 1 | . . . . . . . . . . . . . . . . . . . . . . . 1 . . . . . Exploration Rate (%) 57 | 5 91 43 86 98 61 18 66 88 75 67 . 95 15 68 83 83 16 72 70 61 76 15 52 96 20 51 9 30 Regions Visited 28 Branch Regions 17 Pre-discovered Areas 9 | . 1 . 2 1 1 . . . 1 . . . . . . . . . . 3 . . . . . . . . Known Exits Taken 8 | . . . 1 . . . . . . . 1 . . . . . 1 1 . . . 1 . 1 1 . 1 . Unknown Exits Taken 19 | 1 1 1 . 1 1 1 1 1 1 1 . . 1 1 1 1 . . 1 1 1 . 1 . . 1 . . Scrap Searched 13 | . . 1 . 1 . . 1 3 . 4 . . . . . . . 1 1 . 1 . . . . . . . Spaces Dug 231 | . . 27 . . 3 1 . . . 9 . . 26 . . . 8 . 69 . 18 8 7 . 7 15 33 . Terrain Destroyed 1203 | . . 57 16 1 103 29 . 20 . 20 . 6 61 27 37 11 136 10 92 . 92 89 67 . 62 101 122 44 Melee 10 | . . . . . 3 1 . . . . . . 3 . . . . . . . . . . . 3 . . . Projectile 360 | . . . 5 1 10 1 . . . 1 . 6 10 16 2 11 62 10 44 . 12 64 49 . 34 7 11 4 AOE 821 | . . 57 11 . 90 27 . 20 . 19 . . 47 11 35 . 74 . 48 . 80 25 18 . 25 87 109 38 Terrain Rammed . | . . . . . . . . . . . . . . . . . . . . . . . . . . . . . Walls Destroyed . | . . . . . . . . . . . . . . . . . . . . . . . . . . . . . Machines Disabled . | . . . . . . . . . . . . . . . . . . . . . . . . . . . . . Actions | -11 -10 -10 -9 -9 -8 -7 -7 -7 -7 -6 -6 -6 -5 -5 -5 -5 -4 -4 -4 -4 -3 -3 -3 -3 -2 -2 -1 -1 --------- Run | Scr Mat Min Mat Min Mat Fac Low Low Dat Pro Fac DSF Fac Ext Cet Arc Fac Upp Upp Zhi Pro Res Arm Lab Res Tes Acc Com Total 21363 | 92 824 280 1889 734 1151 1076 504 1000 107 628 4 272 1042 793 560 233 527 550 1012 194 908 698 1398 567 1518 1162 514 1126 Wait 2656 | . 22 . 160 4 16 108 99 99 11 120 . 1 138 54 26 77 35 41 65 6 199 119 273 282 457 162 18 64 Move 15579 | 69 656 221 1466 684 881 684 401 878 89 489 4 157 659 664 480 126 408 500 857 181 612 448 873 251 777 735 378 951 Hop . | . . . . . . . . . . . . . . . . . . . . . . . . . . . . . Pick Up 230 | 6 30 9 19 8 16 18 . 1 . 2 . 13 17 5 7 . 4 . 5 1 2 4 9 9 17 16 7 5 Fast Attach 235 | 6 5 . 5 1 12 20 . 1 2 . . 16 24 1 4 1 10 . 4 3 5 17 20 1 24 30 8 15 Attach 143 | 1 4 4 5 . 9 12 . 1 1 1 . 9 15 . 2 . 4 . 1 . 2 5 9 9 16 11 13 9 Detach 49 | . 1 . . . . 6 . . . . . 2 4 . 1 . 3 . 1 . 1 3 5 2 7 4 7 2 Swap 222 | . 6 3 23 1 21 12 1 4 . 5 . 3 26 6 7 2 5 1 9 . 10 3 23 . 35 8 2 6 Drop 364 | . 24 8 29 11 17 27 . 1 3 . . 21 28 6 13 . 12 . 9 3 5 14 31 9 31 39 9 14 Fire 1486 | 10 73 34 126 18 149 74 3 15 . 11 . 50 122 40 20 27 45 8 27 . 44 84 122 4 132 141 64 43 Melee 50 | . . . . . 3 1 . . 1 . . . 4 . . . . . . . 17 . 19 . 5 . . . Ram 18 | . . . . . . . . . . . . . 3 1 . . . . . . . . . . . . . 14 Kick 5 | . . . . . . 2 . . . . . . . . . . . . . . . . . . . 2 1 . Crush 48 | . 3 1 2 5 . 1 . . . . . . 2 1 . . 1 . . . . 1 8 . 17 . 6 . Escape Stasis 16 | . . . . . . . . . . . . . . . . . . . . . . . 6 . . 6 1 3 Rewire 64 | . . . . . . . . . . . . . . 15 . . . . 30 . 11 . . . . 8 . . Trap 198 | . . . 54 2 27 111 . . . . . . . . . . . . 4 . . . . . . . . . Miscellaneous . | . . . . . . . . . . . . . . . . . . . . . . . . . . . . . Route ------- -11/Scrapyard -10/Materials (discovered 3 exits: *Mat x2 / *Min) -10/Mines -9/Materials (discovered 3 exits: *Mat x2 / *Min) -9/Mines (discovered 2 exits: *Mat x2) -8/Materials (discovered 2 exits: *Fac x2) -7/Factory (discovered 3 exits: Sto x2 / *Low) -7/Lower Caves -7/Lower Caves (discovered 2 exits: *Fac / *Dat) -7/Data Miner -6/Proximity Caves -6/Factory -6/DSF -5/Factory -5/Extension (discovered 2 exits: *Fac / *Cet) -5/Cetus (discovered 2 exits: *Fac / [*Arc]) -5/Archives (discovered 3 exits: *Fac / [*Hub x2]) -4/Factory (discovered 2 exits: *Upp x2) -4/Upper Caves -4/Upper Caves (discovered 2 exits: *Res / *Zhi) -4/Zhirov -3/Proximity Caves -3/Research (discovered 2 exits: Res / *Arm) -3/Armory -3/Lab -2/Research (discovered 2 exits: *Tes x2) -2/Testing -1/Access (discovered 2 exits: Sur / *Com) -1/Command History --------- Turn | Location | Event 5 | -11/Scrapyard | Discovered new exit (range 16) 124 | -11/Scrapyard | Entered Materials 332 | -10/Materials | Build established: Mutant 519 | -10/Materials | Discovered new exit (range 17) 682 | -10/Materials | Discovered new exit (range 8) 1224 | -10/Materials | Discovered new exit (range 15) 1423 | -10/Materials | Entered Mines 1476 | -10/Mines | Met a Derelict who couldn't figure out how to use a Trap Extractor 1544 | -10/Mines | Assembled infested the area 1566 | -10/Mines | Core integrity fell below 50% 1618 | -10/Mines | Met 8R-AWN 1779 | -10/Mines | Discovered new exit (range 3) 1884 | -10/Mines | Entered Materials 1884 | -9/Materials | Evolved 2 slots: Propulsion x1, Utility x1 2078 | -9/Materials | Identified exit to Mines 2494 | -9/Materials | Build established: Scavenger-Mutant 2723 | -9/Materials | Destroyed 7 combat bots 2841 | -9/Materials | Build established: Mutant 3570 | -9/Materials | Discovered new exit (range 7) 3834 | -9/Materials | Discovered new exit (range 5) 4990 | -9/Materials | Entered Mines 4997 | -9/Mines | Received a Rocket Launcher from a helpful Derelict 5035 | -9/Mines | Found a damaged Exp. Sensor Array with a note attached 5041 | -9/Mines | Found Prototype Device 5091 | -9/Mines | Met a Derelict bent on vengeance 5198 | -9/Mines | Met a Derelict shopkeep closing up shop 5641 | -9/Mines | Assisted by bots powering up and referring to "LRC-V3" 5742 | -9/Mines | Learned location of Storage (-7) 5791 | -9/Mines | Found the Drone Emporium 5801 | -9/Mines | Found Prototype Device 5946 | -9/Mines | Found a hidden stash of uninstalled traps 5956 | -9/Mines | Discovered new exit (range 6) 6085 | -9/Mines | Discovered new exit (range 9) 6150 | -9/Mines | A weapon hastily lodged in a ceiling crevice suddenly fell to the ground 6282 | -9/Mines | Entered Materials 6282 | -8/Materials | Accompanied by 1 ally 6282 | -8/Materials | Evolved 2 slots: Utility x2 6786 | -8/Materials | Identified Bomb Drone Bay 6903 | -8/Materials | Destroyed 8 combat bots 8019 | -8/Materials | Discovered new exit (range 16) 8191 | -8/Materials | Identified Exp. Sensor Array 8557 | -8/Materials | Discovered new exit (range 13) 8602 | -8/Materials | Lost 4 parts (1n3u) 8673 | -8/Materials | Destroyed 7 combat bots 8682 | -8/Materials | First assault squad dispatched 8729 | -8/Materials | Entered Factory 8729 | -7/Factory | Evolved 2 slots: Propulsion x1, Utility x1 8730 | -7/Factory | Identified exit to Storage 9825 | -7/Factory | Fabricated Exp. Sensor Array (x1) 9943 | -7/Factory | Repaired Arm. Treads 10040 | -7/Factory | Build established: Scavenger-Mutant 10127 | -7/Factory | Cargo convoy interrupted 10181 | -7/Factory | Destroyed 8 combat bots 10188 | -7/Factory | Lost 3 parts (2u1w) 10265 | -7/Factory | System corruption reached 10% 10342 | -7/Factory | Discovered new exit (range 16) 10388 | -7/Factory | Entered Lower Caves 10462 | -7/Lower Caves | Build established: Mutant 10992 | -7/Lower Caves | Discovered new exit (range 2) 11007 | -7/Lower Caves | Entered another Lower Caves area 11008 | -7/Lower Caves | Encountered a Warlord checkpoint 11053 | -7/Lower Caves | Discovered new exit (range 15) 11551 | -7/Lower Caves | Spotted B-75 Beast 11804 | -7/Lower Caves | Discovered new exit (range 5) 12586 | -7/Lower Caves | Entered Data Miner 12586 | -7/Data Miner | Discovered new exit (range 6) 12617 | -7/Data Miner | Met Data Miner 12650 | -7/Data Miner | Acquired the access code to Warlord's prototype stash 12650 | -7/Data Miner | Learned location of Section 7 (-2) 12672 | -7/Data Miner | Received God Mode back door access code from Data Miner 12723 | -7/Data Miner | Entered Proximity Caves 13482 | -6/Proximity Caves | Learned Factory stockpile data 13815 | -6/Proximity Caves | Discovered new exit (range 13) 13839 | -6/Proximity Caves | Spotted B-75 Beast 13839 | -6/Proximity Caves | Entered Factory 13839 | -6/Factory | Evolved 2 slots: Power x1, Utility x1 13847 | -6/Factory | Identified exit to DSF 13847 | -6/Factory | Entered DSF 13848 | -6/DSF | System corruption reached 10% 13915 | -6/DSF | Additional patrols routed to DSF 14081 | -6/DSF | System corruption reached 30% 14098 | -6/DSF | Lost 4 parts (1p2n1u) 14163 | -6/DSF | Sterilization system engaged 14183 | -6/DSF | Ambient heat levels rising (+10) 14198 | -6/DSF | Ambient heat levels rising (+10) 14213 | -6/DSF | Ambient heat levels rising (+10) 14228 | -6/DSF | Ambient heat levels rising (+10) 14243 | -6/DSF | Ambient heat levels rising (+10) 14258 | -6/DSF | Ambient heat levels rising (+10) 14273 | -6/DSF | Ambient heat levels rising (+10) 14288 | -6/DSF | Ambient heat levels rising (+10) 14302 | -6/DSF | Discovered new exit (range 14) 14303 | -6/DSF | Ambient heat levels rising (+10) 14318 | -6/DSF | Ambient heat levels rising (+10) 14331 | -6/DSF | Entered Factory 14331 | -5/Factory | Evolved 2 slots: Propulsion x1, Utility x1 14411 | -5/Factory | Incoming investigation squad redirected 14535 | -5/Factory | Build established: Scavenger-Mutant 14541 | -5/Factory | Destroyed 8 combat bots 14546 | -5/Factory | Lost 3 parts (2u1w) 15070 | -5/Factory | Fabricated H-66 Slayer (x2) 15151 | -5/Factory | Fabricated H-66 Slayer? 15334 | -5/Factory | Lost 4 parts (4n) 15531 | -5/Factory | Cargo convoy interrupted 15537 | -5/Factory | System corruption reached 10% 15545 | -5/Factory | Incoming assault squad redirected 15580 | -5/Factory | Core integrity fell below 50% 15631 | -5/Factory | Lost 4 parts (2p1n1u) 15807 | -5/Factory | Discovered new exit (range 23) 15958 | -5/Factory | Entered Extension 16037 | -5/Extension | Rescued a captive Derelict 16037 | -5/Extension | Rescued a captive Derelict 16089 | -5/Extension | Rescued A7 16158 | -5/Extension | Rescued a captive Derelict 16159 | -5/Extension | Rescued a captive Derelict 16258 | -5/Extension | First assault squad dispatched 16669 | -5/Extension | Disrupted transfer network 16769 | -5/Extension | Spotted B-75 Beast 16789 | -5/Extension | Allies destroyed B-75 Beast 16804 | -5/Extension | Spotted B-75 Beast 16834 | -5/Extension | Allies destroyed B-75 Beast 17014 | -5/Extension | Discovered new exit (range 23) 17015 | -5/Extension | Discovered new exit (range 22) 17057 | -5/Extension | Entered Cetus 17057 | -5/Cetus | Accompanied by 1 ally (A7) 17062 | -5/Cetus | Acquired a Cetus Manufacturing Module code from A7 17072 | -5/Cetus | Spotted Cetus Guard 17072 | -5/Cetus | Spotted Cetus Guard 17072 | -5/Cetus | Spotted Cetus Guard 17072 | -5/Cetus | Spotted Cetus Guard 17083 | -5/Cetus | Allies destroyed Cetus Guard 17084 | -5/Cetus | Allies destroyed Cetus Guard 17085 | -5/Cetus | Destroyed Cetus Guard 17087 | -5/Cetus | Destroyed Cetus Guard 17167 | -5/Cetus | Started Cetus Manufacturing Module 17192 | -5/Cetus | Manufactured an Enhanced Grunt 17217 | -5/Cetus | Manufactured an Enhanced Grunt 17242 | -5/Cetus | Manufactured an Enhanced Grunt 17267 | -5/Cetus | Manufactured an Enhanced Grunt 17278 | -5/Cetus | Escorted A7 to Cetus Mainframe 17292 | -5/Cetus | Manufactured an Enhanced Grunt 17373 | -5/Cetus | Discovered new exit (range 23) 17429 | -5/Cetus | Spotted Cetus Guard 17429 | -5/Cetus | Spotted Cetus Guard 17436 | -5/Cetus | Spotted Cetus Guard 17439 | -5/Cetus | Allies destroyed Cetus Guard 17439 | -5/Cetus | Spotted Cetus Guard 17445 | -5/Cetus | Allies destroyed Cetus Guard 17446 | -5/Cetus | Allies destroyed Cetus Guard 17448 | -5/Cetus | Discovered new exit (range 22) 17449 | -5/Cetus | Allies destroyed Cetus Guard 17467 | -5/Cetus | Met Revision 17 17547 | -5/Cetus | Cetus Manufacturing Module disabled 17575 | -5/Cetus | Found Prototype Device 17575 | -5/Cetus | Identified Exp. Thermal Shield 17577 | -5/Cetus | Extracted ID and sensor layout for unrecognized location from A7's data core 17813 | -5/Cetus | Entered Archives 17813 | -5/Archives | Accompanied by 4 allies 17952 | -5/Archives | Discovered new exit (range 20) 17965 | -5/Archives | Discovered new exit (range 19) 17973 | -5/Archives | Discovered new exit (range 16) 18146 | -5/Archives | Entered Factory 18146 | -4/Factory | Accompanied by 4 allies 18146 | -4/Factory | Evolved 2 slots: Propulsion x1, Utility x1 18373 | -4/Factory | Identified exit to Upper Caves 18837 | -4/Factory | Spotted B-86 Titan 18892 | -4/Factory | Entered Upper Caves 18894 | -4/Upper Caves | Attracted the attention of an 0b10 checkpoint 19251 | -4/Upper Caves | Identified exit to Upper Caves 19273 | -4/Upper Caves | Learned location of 1 exit from Research 19451 | -4/Upper Caves | Encountered a Warlord checkpoint 19609 | -4/Upper Caves | Entered another Upper Caves area 19650 | -4/Upper Caves | Discovered new exit (range 9) 20180 | -4/Upper Caves | Spotted B-86 Titan 20677 | -4/Upper Caves | Attacked by a delusional Derelict stockpiling Unaware 20802 | -4/Upper Caves | Attracted the attention of an 0b10 checkpoint 20893 | -4/Upper Caves | Discovered new exit (range 9) 20899 | -4/Upper Caves | Learned Research trap positions 20928 | -4/Upper Caves | Entered Zhirov 20928 | -4/Zhirov | Accompanied by 4 allies 20928 | -4/Zhirov | Discovered new exit (range 3) 20952 | -4/Zhirov | Met Zhirov 20984 | -4/Zhirov | Found Alien Artifact 20984 | -4/Zhirov | Identified Integrated Dissipator 20984 | -4/Zhirov | Installed Integrated Dissipator, increased core heat dissipation (+20) 21028 | -4/Zhirov | Build established: Commander-Mutant 21057 | -4/Zhirov | Learned location of Command (-1) 21057 | -4/Zhirov | Learned location of Testing (-2) 21057 | -4/Zhirov | Learned location of Quarantine (-3) 21065 | -4/Zhirov | Zhirov requested help retrieving the SGEMP Prototype 21117 | -4/Zhirov | Found Alien Artifact 21177 | -4/Zhirov | Entered Proximity Caves 21177 | -3/Proximity Caves | Accompanied by 4 allies 21241 | -3/Proximity Caves | Attracted the attention of an 0b10 checkpoint 21651 | -3/Proximity Caves | Build established: Scavenger-Mutant 21830 | -3/Proximity Caves | Received a Behemoth hack from an annoying Tinkerer 22073 | -3/Proximity Caves | Discovered new exit (range 21) 22255 | -3/Proximity Caves | Found Prototype Launcher 22255 | -3/Proximity Caves | Identified Scatter Rocket Array 22375 | -3/Proximity Caves | Entered Research 22375 | -3/Research | Accompanied by 2 allies 22375 | -3/Research | Evolved 2 slots: Utility x2 22376 | -3/Research | Identified exit to Armory 22377 | -3/Research | Identified exit to Research 22378 | -3/Research | Loaded intel: 91 trap records 22949 | -3/Research | Found Unknown Launcher 22949 | -3/Research | Identified Fusion Bomb Launcher 23150 | -3/Research | Build established: Mutant 23375 | -3/Research | First assault squad dispatched 23391 | -3/Research | Incoming assault squad redirected 23423 | -3/Research | Entered Armory 23621 | -3/Armory | Fabricated Assault Drone Bay? 24334 | -3/Armory | Found Prototype Device 24334 | -3/Armory | Identified Exp. ECM Suite 24339 | -3/Armory | Found Prototype Device 24339 | -3/Armory | Identified Exp. Focal Shield 25467 | -3/Armory | First assault squad dispatched 25509 | -3/Armory | Identified Transdimensional Reconstructor 25509 | -3/Armory | Warped through subspace to slip node 25509 | -3/Armory | Discovered new exit (range 1) 25512 | -3/Armory | Entered Lab 25513 | -3/Lab | Discovered exit to Research (range 9) 25532 | -3/Lab | Hidden lab's door opened automatically 25532 | -3/Lab | Sensor layout match revealed 25533 | -3/Lab | Gained access to the hidden lab's interior 25533 | -3/Lab | Unable to decrypt terminal 25645 | -3/Lab | Found Integrated Dissipator 25645 | -3/Lab | Installed Integrated Dissipator, increased core heat dissipation (+20) 25656 | -3/Lab | Found Transdimensional Reconstructor 25667 | -3/Lab | Found Alien Artifact 25888 | -3/Lab | Found Quantum Router 25892 | -3/Lab | Found Prototype Protection 25898 | -3/Lab | Found Prototype Energy Cannon 26170 | -3/Lab | Unable to decrypt terminal 26189 | -3/Lab | Build established: Hacker-Mutant 26208 | -3/Lab | Entered Research 26208 | -2/Research | Evolved 2 slots: Utility x2 26215 | -2/Research | Identified Potential Cannon 26606 | -2/Research | Identified Med. Regenerative Plating 27002 | -2/Research | Identified exit to Testing 27413 | -2/Research | Found Prototype Processor 27413 | -2/Research | Identified Exp. Core Analyzer 27425 | -2/Research | Found Exp. Core Analyzer 27490 | -2/Research | System corruption reached 10% 27843 | -2/Research | Destroyed 8 combat bots 27866 | -2/Research | Found Prototype Launcher 27866 | -2/Research | Identified Enh. Gamma Bomb Array 27879 | -2/Research | Found Unknown Device 27879 | -2/Research | Identified Quantum Capacitor 27889 | -2/Research | Identified Core Expander 27889 | -2/Research | Installed Core Expander, added new Propulsion slot 27902 | -2/Research | Spotted B-90 Cyclops 27923 | -2/Research | Found Exp. Thermal Shield 27991 | -2/Research | First assault squad dispatched 28007 | -2/Research | Incoming assault squad redirected 28046 | -2/Research | Lost 5 parts (1p1n3u) 28390 | -2/Research | Entered Testing 28420 | -2/Testing | Found Potential Cannon 28558 | -2/Testing | Found Prototype Ballistic Gun 28558 | -2/Testing | Identified Hyp. Multirail 28660 | -2/Testing | Found Prototype Device 28660 | -2/Testing | Identified Exp. Hardlight Generator 28769 | -2/Testing | Spotted Striker 28786 | -2/Testing | Spotted Striker 28818 | -2/Testing | Destroyed Striker 28840 | -2/Testing | Destroyed Striker 28852 | -2/Testing | Spotted Alpha 7 28933 | -2/Testing | First assault squad dispatched 28966 | -2/Testing | Scanned by Researcher 29046 | -2/Testing | Stole the SGEMP Prototype 29335 | -2/Testing | Found Prototype Energy Cannon 29335 | -2/Testing | Identified Hpw. Disruptor Cannon 29422 | -2/Testing | Discovered new exit (range 16) 29593 | -2/Testing | Found Antimissile System 29595 | -2/Testing | Found Antimissile System 29821 | -2/Testing | High security lockdown imminent 29895 | -2/Testing | Entered Access 29895 | -1/Access | Evolved 2 slots: Power x1, Utility x1 29896 | -1/Access | Loaded intel: 97 machine locations 29896 | -1/Access | Loaded intel: 110 trap records 29896 | -1/Access | Identified exit to Surface 29896 | -1/Access | Discovered exit to Surface (range 191) 29896 | -1/Access | Identified exit to Command 29896 | -1/Access | Discovered exit to Command (range 98) 29896 | -1/Access | Delivered the SGEMP Prototype to Zhirov 29896 | -1/Access | Zhirov transferred Access data 30171 | -1/Access | First assault squad dispatched 30190 | -1/Access | Build established: Generator-Mutant 30199 | -1/Access | Incoming assault squad redirected 30278 | -1/Access | Zhirov warped through subspace 30299 | -1/Access | Spotted B-99 Colossus 30405 | -1/Access | Found Unknown Protection 30405 | -1/Access | Identified Hvy. Reactive Plating 30485 | -1/Access | Spotted B-99 Colossus 30591 | -1/Access | High security lockdown imminent 30600 | -1/Access | Destroyed B-99 Colossus 30627 | -1/Access | Destroyed 7 combat bots 30637 | -1/Access | System corruption reached 10% 30671 | -1/Access | High security lockdown engaged 30696 | -1/Access | Crushed by falling debris 30708 | -1/Access | Entered Command 30958 | -1/Command | First assault squad dispatched 30973 | -1/Command | Incoming assault squad redirected 31111 | -1/Command | Build established: Scavenger-Mutant 31186 | -1/Command | Spotted M Guard 31186 | -1/Command | Spotted M Guard 31186 | -1/Command | Spotted Combat Programmer 31187 | -1/Command | Spotted Combat Programmer 31213 | -1/Command | Destroyed Combat Programmer 31225 | -1/Command | Destroyed Combat Programmer 31265 | -1/Command | System corruption reached 30% 31306 | -1/Command | Core integrity fell below 50% 31325 | -1/Command | Spotted B-99 Colossus 31328 | -1/Command | Lost 24 parts (4p6n11u3w) 31505 | -1/Command | Incoming assault squad redirected 31531 | -1/Command | Core integrity fell below 20% 31561 | -1/Command | Lost 3 parts (2n1u) 31575 | -1/Command | Build established: Mutant 31620 | -1/Command | Spotted Executioner 31620 | -1/Command | Spotted Executioner 31620 | -1/Command | Spotted Striker 31620 | -1/Command | Spotted Executioner 31620 | -1/Command | Spotted Executioner 31620 | -1/Command | Spotted Striker 31620 | -1/Command | Spotted Alpha 7 31620 | -1/Command | Spotted Alpha 7 31621 | -1/Command | Spotted B-99 Colossus 31625 | -1/Command | Spotted B-99 Colossus 31625 | -1/Command | Destroyed by B-99 Colossus with Multirail Last Messages --------------- 31621_ Slug penetrates Wall. 31622_ Field strength at 70. 31622_ Penetrated by Slug. 31622_ Biometal Heavy Treads destroyed. 31622_ Penetrated by Slug. 31623_ Field strength at 37. 31624_ Penetrated by Slug. 31624_ Field strength at 9. 31624_ Stasis field depleted. 31624_ Exp. Core Analyzer destroyed. 31624_ Slug penetrates Executioner. 31624_ Imp. Armor Integrity Analyzer destroyed. 31625_ Penetrated by Slug. 31625_ Exp. Optical Array destroyed. 31625_ Slug penetrates Wall. 31625_ Penetrated by Slug. 31625_ Slug penetrates Wall. 31625_ Penetrated by Slug. 31625_ Slug penetrates Wall. 31625_ Penetrated by Slug. Map ----- +----------------------------------------------------+ | ????# #?????????????????????????????????????????? | | ????# #?????????????????????????????????????????? | | ###?# #?????????????????????????????????????????? | | ### #?????????????????????????????????????????? | | #?????????????????????????????????????????? | | +????????????###??????????????????????????? | | #### #???????????? ??????????????????????????? | | ##??? #????????????? ???????? #????????????????? | | #???? #????????????? ???????? #????????????????? | | #???? #?#+#????????? ??????? #????????????????? | | #?###+### #????????? ??????? #????????????????? | | #? # #???###??? ?????? #????????????????? | | # # #?? #?# ?????? #????????????????? | | # # #?? #?# ?????? #????????????????? | | + # #? #?? """""" ?????????????????? | | # # #? ! #?? ??????????????????? | | ######### # #???BB ??????????????????? | | # #???BB BB ???????????????????? | | + #????; ^ BB##??????????????????? | | #### ### # #???? ???????????????????? | | # #?# # =#???## E##??????????????????? | | # #?# #? #???? #??????????????????? | | + #?# #? #???##E E##??????????????????? | | # #?# #?? #???# #??????????????????? | | # #?# #??####???## K##??????????????????? | | # #?# #?????????#%EK@ 7#??????????????????? | | "" # #?# #?????????##7 ##??????????????????? | | "" # #?# #??????????# #???????????????????? | | "" + #?# #??????????##////##???????????????????? | | " # ##?# #??########?#% #????????????????????? | | # #??# #??# # #????????????????????? | | # #??# #??# #% #????????????????????? | | # #??# #??# ; #????????????????????? | | # #### #### "" # #????????????????????? | | ####+## ## """" # #????????????????????? | | ## ## """" ?#pp #????????????????????? | | ## ## "" ?# #??########??????????? | | ## ## ??#p #?? """ #??????????? | | " ## ## ??# #? ""T"" #??????????? | | " ##* ###### ???#p #? "" "" #??????????? | | Y ####+######??##???#p # #??????????? | | " # #???????# # #??????????? | | " # #???????# + #??????????? | | # "" ######### # #??????????? | | # """" + # #??????????? | | ###### """" ##########+###?#########??????????? | | ###### "" #??????? ?????????????????????? | | # #????? ???????????????????? | | " # #??? ?????????????????? | | "" # #? ???????????????? | +----------------------------------------------------+ Best States ------------- Heat Dissipation 130 Coolant Potential 120 Energy Generation 93 Energy Capacity 1250 Matter Stores 580 Matter Capacity 700 Sight Range 23 Robot Scan Range 20 Terrain Scan Density 210 Jamming Range 16 Power Amplification 40 Armor Coverage 1650 Resistance: KI 40 Point Defense Rating 480 Weapon Cycling 15 Phase Shifting 15 Evasion (%) 70 Targeting Accuracy 16 Target Analysis 12 Core Analysis 12 Armor Integrity Analysis 40 Recoil Reduction 6 Energy Filtering 30 Particle Charging 25 Kinecelleration 40 Offensive Hacking 12 Defensive Hacking 35 Authchip Count 3 Trap Extractor Capacity 6 Item Schematics ----------------- Cmb. Airjet | -9/Materials | Scanalyzed Lrg. Storage Unit | -9/Materials | Scanalyzed Field Recycling Unit | -9/Materials | Extracted Exp. Sensor Array | -8/Materials | Scanalyzed Hrd. Medium Armor Plating | -8/Materials | Scanalyzed Lrn. Proton Cannon | -7/Data Miner | Free Imp. Coolant Injector | -7/Data Miner | Free Hvy. Treads | -7/Data Miner | Free Antimatter Cannon | -7/Data Miner | Free Thermal Defense Suite | -7/Data Miner | Free Biomechanical Wings | -7/Data Miner | Free Lgt. Regenerative Plating | -7/Data Miner | Free Combat Drone Bay | -7/Data Miner | Free Imp. Arc Thrower | -4/Zhirov | Free Exp. Optical Array | -4/Zhirov | Free Exp. Heat Sink | -4/Zhirov | Free Assault Drone Bay | -4/Zhirov | Free Hdn. Centrium Leg | -2/Testing | Archive Imp. Q-thruster | -2/Testing | Archive Exp. Thermal Generator | -2/Testing | Archive Com. Particle Reactor | -2/Testing | Archive Adv. EM Disruption Field | -2/Testing | Archive Robot Schematics ------------------ M-13 Machinist | -9/Materials | Hacked O-16 Technician | -9/Materials | Hacked H-55 Commando | -8/Materials | Hacked Y-64 Sentinel | -7/Data Miner | Free S-27 Virus | -7/Data Miner | Free M-14 Sweeper | -7/Data Miner | Free L-41 Fighter | -7/Data Miner | Free H-66 Slayer | -7/Data Miner | Free A-27 Freighter | -2/Testing | Archive Fabricated ------------ Exp. Sensor Array | x1 | -7/Factory H-66 Slayer | x2 | -5/Factory | Authchip H-66 Slayer | x2 | -5/Factory | Authchip Assault Drone Bay | x1 | -3/Armory | Authchip Alien Tech Used ----------------- Integrated Dissipator Transdimensional Reconstructor Core Expander Achievements -------------- None Challenges ------------ None Game ------ Seed CryofiberTerrainInsulator Manual? 0 Play Time 04:36:32 Cumulative 590.4 hours Start 2022.04.07 @ 21:03:47 End 2022.04.10 @ 23:17:59 Sessions 20 Manual Loads 0 Difficulty Rogue Special Mode None Game No. 368 Rogue 368 Adventurer 0 Explorer 0 Win Type - Total 7 Types 5/0/1/0/1/0/0/0/0 Lore% 85 Gallery% 87 Achievement% 74 Wizard Run 0 Options --------- ASCII 0 Keyboard 0 Movement Mouse Keybinds 1 Fullscreen 2 Font 24/Smallcaps Map View 68x50 Tactical HUD 1 Map Filters NONE Filters NONE Steam 1 RUN: f9cfebb5-5262-4054-abfa-fd9e1045e4c7